bitfinex/quotes_BTCUSD_20240611
["timestamp","ask_amount","ask_price","bid_price","bid_amount"]
[1718123985081,0.18700984,66536.0,66535.0,0.43142345]
[1718123985297,0.18700984,66536.0,66535.0,0.11968773]
[1718123985508,0.18700984,66536.0,66535.0,0.12068773]
[1718123985751,0.18700984,66536.0,66535.0,0.11968773]
[1718123986175,0.18700984,66536.0,66535.0,0.12068773]
[1718123988172,0.18700984,66536.0,66535.0,0.11968773]
[1718123988389,0.18700984,66536.0,66535.0,0.11920195]
[1718123989307,0.18700984,66536.0,66535.0,0.12020195]
[1718123989517,0.18700984,66536.0,66535.0,0.11959833]
[1718123991126,0.24260984,66536.0,66535.0,0.0104467]
[1718123991354,0.16200984,66536.0,66535.0,0.0104467]
[1718123991614,0.16200984,66536.0,66535.0,0.00720975]
[1718123991843,0.63284552,66536.0,66535.0,0.00720975]
[1718123992057,0.71364552,66536.0,66535.0,0.00720975]
[1718123992275,0.71364552,66536.0,66535.0,0.00620975]
[1718123992513,1.28501007,66536.0,66535.0,0.00620975]
[1718123992798,1.38501007,66536.0,66535.0,0.00720975]
[1718123993216,1.21431888,66536.0,66535.0,0.00620975]
[1718123993450,1.78542431,66536.0,66535.0,0.00620975]
[1718123993678,1.71364552,66536.0,66535.0,0.00620975]
[1718123993924,1.71364552,66536.0,66524.0,0.00856]
[1718123993925,1.53084359,66528.0,66524.0,0.00856]
[1718123994288,0.94873048,66525.0,66524.0,0.00856]
[1718123994379,0.23720984,66509.0,66508.0,0.0088539]
[1718123994618,0.50145152,66509.0,66508.0,0.0088539]
[1718123995327,0.79437854,66509.0,66508.0,0.0088539]
[1718123995549,1.12154522,66509.0,66508.0,0.0088539]
[1718123995771,1.31842296,66509.0,66508.0,0.0088539]
[1718123996208,1.31842296,66509.0,66508.0,0.0098539]
[1718123996423,1.23228859,66508.0,66507.0,0.00856]
[1718123996655,0.73229559,66505.0,66504.0,0.01352242]
[1718123996879,1.23230459,66501.0,66486.0,0.00855]
[1718123997096,1.75474445,66501.0,66486.0,0.00855]
[1718123997317,1.85474445,66501.0,66486.0,0.00855]
[1718123997761,0.39040984,66487.0,66486.0,0.00855]
[1718123998011,0.54081484,66487.0,66486.0,0.00855]
[1718123998248,0.09932664,66487.0,66486.0,0.00855]
[1718123998468,0.09932664,66490.0,66486.0,0.00855]
[1718123998700,0.0761,66504.0,66486.0,0.00855]
[1718123998701,0.09932664,66491.0,66489.0,0.07215996]
[1718123998926,0.59765979,66508.0,66489.0,0.07215996]
[1718123998927,0.09932664,66490.0,66489.0,0.07215996]
[1718123999146,0.09932664,66490.0,66486.0,0.01180892]
[1718123999147,0.09932664,66487.0,66486.0,0.00955]
[1718123999389,0.09932664,66487.0,66486.0,0.00855]
[1718123999602,0.09932664,66487.0,66486.0,0.00955]
[1718124000042,0.16200984,66487.0,66486.0,0.00855]
[1718124000464,0.09932664,66487.0,66486.0,0.00855]
[1718124001615,0.09932664,66490.0,66489.0,0.02]
[1718124001868,0.01992175,66509.0,66489.0,0.02]
[1718124001869,0.09932664,66491.0,66490.0,0.02]
[1718124002091,0.09932664,66493.0,66492.0,0.02]
[1718124002314,0.09932664,66499.0,66498.0,0.09215996]
[1718124003178,0.09932664,66501.0,66500.0,0.02]
[1718124003397,0.0626832,66509.0,66500.0,0.02]
[1718124003398,0.09932664,66509.0,66508.0,0.02]
[1718124004695,0.1564,66525.0,66500.0,0.56301993]
[1718124004696,0.09932664,66505.0,66501.0,0.1]
[1718124004927,0.09932664,66505.0,66493.0,0.02]
[1718124004928,0.16200984,66499.0,66498.0,0.001]
[1718124005147,0.16200984,66499.0,66494.0,0.1]
[1718124005148,0.09932664,66499.0,66494.0,0.1]
[1718124005370,0.1564,66508.0,66494.0,0.1]
[1718124005371,0.16200984,66498.0,66494.0,0.1]
[1718124005609,0.09932664,66498.0,66494.0,0.1]
[1718124006043,0.01992175,66513.0,66494.0,0.1]
[1718124006044,0.09932664,66500.0,66496.0,0.02]
[1718124006190,0.09932664,66500.0,66499.0,0.02]
[1718124006411,0.16200984,66498.0,66494.0,0.1]
[1718124006613,0.0626832,66497.0,66494.0,0.1]
[1718124006815,0.09932664,66498.0,66494.0,0.101]
[1718124007016,0.09932664,66498.0,66497.0,0.150382]
[1718124007264,0.09932664,66498.0,66494.0,0.121]
[1718124007601,0.09932664,66498.0,66497.0,0.02]
[1718124007828,0.09932664,66498.0,66496.0,0.02]
[1718124008253,0.09932664,66498.0,66497.0,0.02]
[1718124008875,0.09932664,66499.0,66496.0,0.02]
[1718124009030,0.09932664,66498.0,66495.0,0.1]
[1718124009235,0.09932664,66498.0,66496.0,0.1797]
[1718124009455,0.09932664,66498.0,66496.0,0.1787]
[1718124009878,0.09932664,66499.0,66497.0,0.001]
[1718124010080,0.09932664,66498.0,66497.0,0.07215996]
[1718124010680,0.09932664,66498.0,66497.0,0.00330416]
[1718124011010,0.16200984,66498.0,66497.0,0.00330416]
[1718124012275,0.09932664,66498.0,66497.0,0.00430416]
[1718124012486,0.09932664,66498.0,66497.0,0.00330416]
[1718124012932,0.09932664,66498.0,66497.0,0.00430416]
[1718124013140,0.09932664,66498.0,66497.0,0.02430416]
[1718124013649,0.09932664,66498.0,66497.0,0.00430416]
[1718124014088,0.09932664,66500.0,66499.0,0.02]
[1718124014281,0.09932664,66500.0,66499.0,0.170378]
[1718124014487,0.09932664,66506.0,66505.0,0.02]
[1718124014743,0.09932664,66506.0,66505.0,0.1987]
[1718124014962,0.09932664,66507.0,66506.0,0.02]
[1718124015608,0.09932664,66507.0,66506.0,0.02332657]
[1718124016692,0.09932664,66513.0,66507.0,0.17036]
[1718124016911,0.09932664,66513.0,66512.0,0.1987]
[1718124017381,0.09932664,66513.0,66512.0,0.20185936]
[1718124017591,0.09932664,66517.0,66516.0,0.02]
[1718124017768,0.09932664,66523.0,66516.0,0.02]
[1718124018025,0.09932664,66523.0,66518.0,0.1987]
[1718124018260,0.0626832,66527.0,66518.0,0.1787]
[1718124018261,0.09932664,66519.0,66518.0,0.1787]
[1718124018474,0.09932664,66520.0,66518.0,0.1787]
[1718124018684,0.0768,66528.0,66518.0,0.18180716]
[1718124018685,0.09932664,66519.0,66518.0,0.18180716]
[1718124018887,0.09932664,66519.0,66518.0,0.20180716]
[1718124019614,0.09932664,66520.0,66518.0,0.20180716]
[1718124019830,0.09932664,66519.0,66518.0,0.20180716]
[1718124020051,0.09932664,66521.0,66519.0,0.02]
[1718124020250,0.09932664,66520.0,66519.0,0.02]
[1718124021450,0.09932664,66521.0,66520.0,0.02]
[1718124021878,0.09932664,66521.0,66520.0,0.02309308]
[1718124022550,0.09932664,66521.0,66520.0,0.00309308]
[1718124022986,0.09932664,66521.0,66520.0,0.02309308]
[1718124023424,0.09932664,66521.0,66520.0,0.00309308]
[1718124023644,0.10432664,66521.0,66520.0,0.00309308]
[1718124024492,0.09932664,66521.0,66520.0,0.00309308]
[1718124024918,0.09932664,66521.0,66520.0,0.02309308]
[1718124025559,0.09932664,66521.0,66520.0,0.00309308]
[1718124025793,0.10132664,66521.0,66520.0,0.00309308]
[1718124026026,0.10132664,66521.0,66520.0,0.02309308]
[1718124026885,0.10132664,66521.0,66520.0,0.38990297]
[1718124026886,0.002,66521.0,66520.0,0.38990297]
[1718124027103,0.002,66521.0,66520.0,0.31774301]
[1718124027794,0.002,66521.0,66520.0,0.41774301]
[1718124028026,0.002,66521.0,66520.0,0.53184034]
[1718124028237,0.002,66521.0,66520.0,0.84361152]
[1718124028695,0.002,66521.0,66520.0,0.53184034]
[1718124028912,0.002,66521.0,66520.0,0.84358891]
[1718124029557,0.09932664,66529.0,66527.0,0.02]
[1718124029771,0.09932664,66532.0,66530.0,0.02]
[1718124029994,0.000946,66536.0,66530.0,0.02]
[1718124029995,0.09932664,66531.0,66530.0,0.02]
[1718124030216,0.09932664,66528.0,66527.0,0.150314]
[1718124031103,0.09932664,66528.0,66527.0,0.170314]
[1718124032538,0.10232664,66528.0,66527.0,0.170314]
[1718124032744,0.003,66528.0,66527.0,0.170314]
[1718124032947,0.10232664,66528.0,66527.0,0.150314]
[1718124033878,0.0626832,66527.0,66523.0,0.02]
[1718124034126,0.09932664,66524.0,66523.0,0.1]
[1718124034351,0.09932664,66524.0,66523.0,0.41175378]
[1718124034548,0.09932664,66524.0,66523.0,0.12]
[1718124034967,0.09932664,66524.0,66523.0,0.270323]
[1718124035322,0.09932664,66526.0,66525.0,0.02]
[1718124035533,0.10232664,66528.0,66527.0,0.02]
[1718124035959,0.09932664,66528.0,66526.0,0.02]
[1718124036160,0.09932664,66527.0,66526.0,0.170317]
[1718124036367,0.09932664,66527.0,66526.0,0.28311109]
[1718124036564,0.09932664,66527.0,66526.0,0.28311927]
[1718124036775,0.09932664,66527.0,66526.0,0.26311927]
[1718124037178,0.09932664,66527.0,66526.0,0.150317]
[1718124037382,0.09932664,66526.0,66525.0,0.1787]
[1718124037794,0.09932664,66526.0,66525.0,0.1987]
[1718124038623,0.09932664,66526.0,66525.0,0.29133876]
[1718124038856,0.09932664,66526.0,66525.0,0.1787]
[1718124039270,0.09932664,66526.0,66525.0,0.330019]
[1718124039678,0.09932664,66526.0,66525.0,0.001]
[1718124039889,0.16200984,66526.0,66525.0,0.001]
[1718124040107,0.16200984,66526.0,66525.0,0.1133063]
[1718124040310,0.16200984,66526.0,66525.0,0.001]
[1718124040726,0.16200984,66526.0,66525.0,0.11791213]
[1718124040935,0.09932664,66526.0,66525.0,0.11791213]
[1718124041544,0.09932664,66526.0,66525.0,0.13791213]
[1718124041742,0.09932664,66526.0,66525.0,0.31661213]
[1718124042180,0.000946,66527.0,66525.0,0.31661213]
[1718124042181,0.000946,66527.0,66526.0,0.02]
[1718124042396,0.10027264,66527.0,66526.0,0.2323063]
[1718124042666,0.10027264,66527.0,66526.0,0.23691213]
[1718124043339,0.10027264,66527.0,66526.0,0.38722913]
[1718124043554,0.10027264,66527.0,66526.0,0.38822913]
[1718124044017,0.000946,66527.0,66526.0,0.38822913]
[1718124044232,0.000946,66527.0,66526.0,0.60470902]
[1718124044453,0.000946,66527.0,66526.0,0.52991305]
[1718124045378,0.000946,66527.0,66526.0,0.73938981]
[1718124045606,0.000946,66536.0,66535.0,0.170296]
[1718124045828,0.000946,66536.0,66535.0,0.42428622]
[1718124046059,0.000946,66536.0,66535.0,0.42887701]
[1718124046757,0.001946,66536.0,66535.0,0.42887701]
[1718124047229,0.000946,66536.0,66535.0,0.52887701]
[1718124047460,0.000946,66536.0,66535.0,0.36555708]
[1718124047710,0.000946,66536.0,66535.0,0.21526108]
[1718124047711,0.2916292,66536.0,66535.0,0.21526108]
[1718124050097,0.228946,66536.0,66535.0,0.21526108]
[1718124051897,0.000946,66536.0,66535.0,0.21526108]
[1718124052118,0.000946,66536.0,66535.0,0.41396108]
[1718124052334,0.000946,66536.0,66535.0,0.65590528]
[1718124053151,0.000946,66536.0,66535.0,0.80620128]
[1718124053393,0.000946,66536.0,66535.0,0.82380881]
[1718124054613,0.000946,66536.0,66535.0,0.96812874]
[1718124055643,0.000946,66536.0,66535.0,1.10544554]
[1718124055852,0.09932664,66548.0,66547.0,0.02]
[1718124056067,0.09932664,66548.0,66547.0,0.11615383]
[1718124056771,0.09932664,66548.0,66547.0,0.00453934]
[1718124056772,0.39740984,66548.0,66547.0,0.00453934]
[1718124057226,0.000946,66551.0,66535.0,0.03860753]
[1718124057227,0.2408,66542.0,66535.0,0.03860753]
[1718124057448,0.2408,66542.0,66536.0,0.13130652]
[1718124057657,0.2408,66542.0,66537.0,0.21130652]
[1718124057878,0.2408,66542.0,66538.0,0.11130652]
[1718124058144,0.2408,66542.0,66537.0,0.1]
[1718124058145,0.2408,66542.0,66539.0,0.21583976]
[1718124058349,0.2408,66542.0,66540.0,0.11130652]
[1718124058569,0.2408,66542.0,66541.0,0.23130652]
[1718124058989,0.2408,66542.0,66541.0,0.38612276]
[1718124059204,0.2408,66542.0,66541.0,0.36612276]
[1718124060311,0.3034832,66542.0,66541.0,0.21583976]
[1718124060799,0.40280984,66542.0,66541.0,0.00453324]
[1718124061214,0.40900984,66536.0,66535.0,0.01760753]
[1718124061427,0.0626832,66529.0,66528.0,0.150312]
[1718124061638,0.0626832,66529.0,66528.0,0.26426255]
[1718124061858,0.09932664,66532.0,66528.0,0.26877985]
[1718124062083,0.09932664,66531.0,66530.0,0.1787]
[1718124062537,0.09932664,66531.0,66530.0,0.44319859]
[1718124062755,0.0626832,66540.0,66530.0,0.44319859]
[1718124062756,0.09932664,66534.0,66533.0,0.02]
[1718124063184,0.09932664,66534.0,66533.0,0.02454036]
[1718124063403,0.09932664,66534.0,66533.0,0.1116098]
[1718124063621,0.09932664,66534.0,66533.0,0.0916098]
[1718124063846,0.09932664,66534.0,66533.0,0.00454036]
[1718124064267,0.09932664,66536.0,66535.0,0.02]
[1718124064685,0.09932664,66536.0,66535.0,0.20324036]
[1718124064909,0.09932664,66536.0,66535.0,0.29031291]
[1718124066667,0.09932664,66536.0,66535.0,0.20324036]
[1718124066879,0.09932664,66536.0,66535.0,0.28999677]
[1718124067322,0.09932664,66536.0,66535.0,0.26999677]
[1718124067742,0.09932664,66536.0,66535.0,0.27025102]
[1718124067957,0.16200984,66536.0,66535.0,0.09155102]
[1718124068385,0.16200984,66536.0,66535.0,0.00454036]
[1718124068993,0.09932664,66536.0,66535.0,0.00454036]
[1718124069613,0.09932664,66544.0,66538.0,0.01]
[1718124069820,0.09932664,66544.0,66542.0,0.07215996]
[1718124070032,0.0636292,66551.0,66542.0,0.22244096]
[1718124070033,0.09932664,66543.0,66542.0,0.22244096]
[1718124070273,0.09932664,66543.0,66542.0,0.34181552]
[1718124070490,0.09932664,66544.0,66543.0,0.170278]
[1718124070708,0.09932664,66549.0,66544.0,0.170275]
[1718124070947,0.09932664,66550.0,66549.0,0.328965]
[1718124071352,0.09932664,66550.0,66549.0,0.33349471]
[1718124071564,0.000946,66551.0,66550.0,0.150262]
[1718124071791,0.000946,66551.0,66550.0,0.22242196]
[1718124071994,0.10027264,66551.0,66550.0,0.150262]
[1718124072204,0.000946,66551.0,66550.0,0.15479171]
[1718124072409,0.000946,66551.0,66550.0,0.31911164]
[1718124072611,0.000946,66551.0,66550.0,0.4912716]
[1718124073025,0.000946,66551.0,66550.0,0.7312716]
[1718124073985,0.000946,66551.0,66550.0,0.89902735]
[1718124074440,0.000946,66551.0,66550.0,0.77568213]
[1718124074624,0.000946,66551.0,66550.0,0.70352217]
[1718124074849,0.000946,66551.0,66550.0,0.65911164]
[1718124075079,0.000946,66551.0,66550.0,0.88221812]
[1718124075509,0.000946,66551.0,66550.0,0.83781164]
[1718124075947,0.000946,66551.0,66550.0,0.88221812]
[1718124076156,0.000946,66551.0,66550.0,0.83781164]
[1718124076802,0.000946,66551.0,66550.0,0.88221812]
[1718124077040,0.000946,66551.0,66550.0,0.86526024]
[1718124077243,0.000946,66551.0,66550.0,0.85784324]
[1718124077465,0.000946,66551.0,66550.0,1.03953866]
[1718124077673,0.09932664,66560.0,66559.0,0.150241]
[1718124078110,0.09932664,66560.0,66559.0,0.17470172]
[1718124078328,0.09932664,66565.0,66561.0,0.02]
[1718124078609,0.09932664,66564.0,66562.0,0.150235]
[1718124078819,0.09932664,66564.0,66562.0,0.25467034]
[1718124079273,0.09932664,66564.0,66562.0,0.49467034]
[1718124080319,0.009416,66567.0,66562.0,0.83769027]
[1718124081591,0.009416,66567.0,66562.0,0.59769027]
[1718124083304,0.009416,66567.0,66562.0,0.83769027]
[1718124083734,0.009416,66567.0,66562.0,0.65899027]
[1718124083948,0.009416,66567.0,66562.0,0.83769027]
[1718124085518,0.236446,66563.0,66562.0,0.10443534]
[1718124085731,0.39845584,66563.0,66562.0,0.00443534]
[1718124086110,0.0626832,66560.0,66559.0,0.01826385]
[1718124086304,0.16200984,66560.0,66559.0,0.02264212]
[1718124086479,0.16200984,66560.0,66559.0,0.00437827]
[1718124086689,0.0626832,66558.0,66553.0,0.150256]
[1718124086921,0.0626832,66557.0,66553.0,0.150256]
[1718124087274,0.09932664,66560.0,66554.0,0.1]
[1718124087485,0.09932664,66560.0,66555.0,0.02]
[1718124087695,0.09932664,66560.0,66555.0,0.20307827]
[1718124087915,0.09932664,66560.0,66556.0,0.1]
[1718124088127,0.09932664,66560.0,66559.0,0.02]
[1718124088343,0.000946,66563.0,66562.0,0.02]
[1718124088592,0.000946,66563.0,66562.0,0.31455493]
[1718124088793,0.000946,66563.0,66562.0,0.41894825]
[1718124089209,0.000946,66563.0,66562.0,0.65894825]
[1718124089422,0.000946,66563.0,66562.0,0.41894825]
[1718124089866,0.000946,66563.0,66562.0,0.65894825]
[1718124095318,0.000946,66563.0,66562.0,0.79626505]
[1718124096163,0.000946,66563.0,66562.0,0.81418073]
[1718124097794,0.009416,66567.0,66566.0,0.3075428]
[1718124098004,0.0626832,66584.0,66566.0,0.3075428]
[1718124098005,0.35014264,66580.0,66579.0,0.02]
[1718124098238,0.009416,66580.0,66579.0,0.31451693]
[1718124098445,0.009416,66580.0,66579.0,0.41451693]
[1718124098662,0.009416,66580.0,66579.0,0.65884943]
[1718124099487,0.009416,66580.0,66579.0,0.83754943]
[1718124100574,0.009416,66580.0,66579.0,0.57754943]
[1718124101444,0.009416,66580.0,66579.0,0.88903812]
[1718124102930,0.009416,66580.0,66579.0,0.90903812]
[1718124103806,0.009416,66580.0,66579.0,0.92742375]
[1718124104691,0.009416,66580.0,66579.0,1.16742375]
[1718124104904,0.009416,66580.0,66579.0,1.14742375]
[1718124105997,0.009416,66580.0,66579.0,0.83593506]
[1718124106203,0.009416,66580.0,66579.0,1.14742437]
[1718124107050,0.009416,66580.0,66579.0,1.14742321]
[1718124107493,0.009416,66580.0,66579.0,1.16742321]
[1718124107923,0.009416,66580.0,66579.0,1.14742321]
[1718124108139,0.009416,66580.0,66579.0,1.16742321]
[1718124109016,0.009416,66580.0,66579.0,1.14742321]
[1718124109658,0.009416,66580.0,66579.0,1.16742321]
[1718124111140,0.009416,66580.0,66579.0,1.14742321]
[1718124111363,0.009416,66580.0,66579.0,1.16742321]
[1718124113723,0.009416,66580.0,66579.0,1.16742328]
[1718124114449,0.009416,66580.0,66579.0,0.85593506]
[1718124114670,0.00542992,66580.0,66579.0,1.14741466]
[1718124115192,0.00542992,66580.0,66579.0,1.16741466]
[1718124119936,0.00542992,66580.0,66579.0,1.46780966]
[1718124120162,0.00542992,66580.0,66579.0,1.49785966]
[1718124120415,0.00542992,66580.0,66579.0,1.2117899]
[1718124120827,0.00542992,66580.0,66579.0,1.16741466]
[1718124121052,0.00542992,66580.0,66579.0,1.14741466]
[1718124122019,0.23762992,66580.0,66579.0,0.43419773]
[1718124122241,0.30031312,66580.0,66579.0,0.43419773]
[1718124122925,0.39963976,66580.0,66579.0,0.32990481]
[1718124123356,0.39963976,66580.0,66579.0,0.33414045]
[1718124124063,0.33695656,66580.0,66579.0,0.35414045]
[1718124124327,0.33695656,66580.0,66579.0,0.50433745]
[1718124124557,0.33695656,66580.0,66579.0,0.48433745]
[1718124125448,0.33695656,66580.0,66579.0,0.50433745]
[1718124125669,0.33695656,66580.0,66579.0,0.48433745]
[1718124126536,0.39963976,66580.0,66579.0,0.33414045]
[1718124131338,0.41956151,66580.0,66579.0,0.00423564]
[1718124131578,0.0626832,66563.0,66562.0,0.19464587]
[1718124131821,0.2950832,66563.0,66562.0,0.46588972]
[1718124132039,0.39440984,66563.0,66562.0,0.41566615]
[1718124132263,0.39440984,66563.0,66562.0,0.10408005]
[1718124132491,0.39440984,66563.0,66562.0,0.00406962]
[1718124132721,0.37540984,66563.0,66562.0,0.00406962]
[1718124132950,0.37540984,66563.0,66547.0,0.06661781]
[1718124132951,0.2324,66550.0,66547.0,0.04441187]
[1718124133201,0.2760832,66550.0,66548.0,0.3116354]
[1718124133444,0.2760832,66550.0,66548.0,0.31560695]
[1718124133445,0.23236,66550.0,66548.0,0.31560695]
[1718124133672,0.23236,66550.0,66548.0,0.00397155]
[1718124133902,0.09932664,66552.0,66549.0,0.14431993]
[1718124134120,0.09932664,66552.0,66551.0,0.02]
[1718124134469,0.09932664,66556.0,66555.0,0.170251]
[1718124134529,0.09932664,66560.0,66559.0,0.02]
[1718124134726,0.09932664,66566.0,66565.0,0.02]
[1718124135116,0.09932664,66566.0,66565.0,0.02381858]
[1718124135517,0.09932664,66566.0,66565.0,0.00381858]
[1718124136144,0.09932664,66566.0,66565.0,0.26381858]
[1718124136717,0.2449,66568.0,66565.0,0.24381858]
[1718124136718,0.09932664,66567.0,66565.0,0.24381858]
[1718124136933,0.09932664,66566.0,66565.0,0.28170988]
[1718124137718,0.09932664,66566.0,66565.0,0.02170988]
[1718124138365,0.14300984,66566.0,66565.0,0.02255988]
[1718124139450,0.14300984,66566.0,66565.0,0.26255988]
[1718124140075,0.09932664,66566.0,66565.0,0.26255988]
[1718124141065,0.09932664,66566.0,66565.0,0.28255988]
[1718124141419,0.09932664,66566.0,66565.0,0.41278888]
[1718124141630,0.14300984,66566.0,66565.0,0.41278888]
[1718124141840,0.0436832,66566.0,66565.0,0.41278888]
[1718124142098,0.14300984,66566.0,66565.0,0.41278888]
[1718124143731,0.09932664,66566.0,66565.0,0.43278888]
[1718124144164,0.18032664,66568.0,66567.0,0.150224]
[1718124144623,0.18032664,66568.0,66567.0,0.15404258]
[1718124145044,0.1626,66572.0,66569.0,0.15022]
[1718124145045,0.09932664,66570.0,66569.0,0.15022]
[1718124145254,0.1626,66572.0,66571.0,0.170215]
[1718124145255,0.09932664,66572.0,66571.0,0.170215]
[1718124145469,0.09932664,66575.0,66574.0,0.02]
[1718124145909,0.09932664,66575.0,66574.0,0.02378738]
[1718124147239,0.09932664,66575.0,66574.0,0.17399538]
[1718124147457,0.09932664,66575.0,66574.0,0.27283378]
[1718124148063,0.09932664,66575.0,66574.0,0.51283378]
[1718124148300,0.09932664,66576.0,66575.0,0.150206]
[1718124148473,0.09932664,66576.0,66575.0,0.2490444]
[1718124148934,0.09932664,66576.0,66575.0,0.27283178]
[1718124149841,0.10475656,66580.0,66579.0,0.170197]
[1718124150067,0.10475656,66580.0,66579.0,0.68055504]
[1718124150299,0.10475656,66580.0,66579.0,0.68433182]
[1718124151653,0.10475656,66580.0,66579.0,0.92433182]
[1718124152354,0.10475656,66580.0,66579.0,0.90433182]
[1718124153684,0.10475656,66580.0,66579.0,0.92433182]
[1718124155387,0.10475656,66580.0,66579.0,0.82549342]
[1718124155597,0.00542992,66580.0,66579.0,0.92331389]
[1718124155809,0.10475656,66580.0,66579.0,1.10201389]
[1718124157323,0.10077048,66580.0,66579.0,0.86201389]
[1718124157746,0.000946,66582.0,66581.0,0.170192]
[1718124157958,0.000946,66582.0,66581.0,0.72603157]
[1718124158170,0.07917264,66587.0,66586.0,0.170181]
[1718124158387,0.07917264,66587.0,66586.0,0.91366004]
[1718124158812,0.1583,66591.0,66586.0,0.91366004]
[1718124158813,0.08858864,66588.0,66587.0,0.170179]
[1718124159030,0.08858864,66588.0,66587.0,0.72101838]
[1718124159257,0.009416,66588.0,66587.0,0.72474565]
[1718124159488,0.08858864,66588.0,66587.0,0.41329537]
[1718124160596,0.009416,66588.0,66587.0,0.3182262]
[1718124160813,0.009416,66588.0,66587.0,0.48341142]
[1718124161251,0.009416,66588.0,66587.0,0.89486205]
[1718124161463,0.009416,66588.0,66587.0,0.89485461]
[1718124161665,0.009416,66588.0,66587.0,1.05117141]
[1718124162091,0.009416,66588.0,66587.0,1.29117141]
[1718124162814,0.009416,66603.0,66587.0,1.29117141]
[1718124162815,0.07917264,66602.0,66593.0,0.200215]
[1718124163026,0.07917264,66602.0,66593.0,1.02770338]
[1718124163238,0.07917264,66602.0,66593.0,1.18772177]
[1718124163473,0.07917264,66602.0,66593.0,1.42772177]
[1718124163928,0.009416,66603.0,66593.0,1.77242933]
[1718124164156,0.009416,66603.0,66593.0,1.73502903]
[1718124164403,0.009416,66603.0,66593.0,1.87410131]
[1718124164617,0.009416,66603.0,66593.0,1.97053478]
[1718124164833,0.009416,66603.0,66593.0,1.90396994]
[1718124165067,0.009416,66603.0,66593.0,1.72526994]
[1718124165498,0.009416,66603.0,66602.0,0.170145]
[1718124165717,0.009416,66603.0,66602.0,0.40650221]
[1718124165931,0.009416,66603.0,66602.0,0.51017812]
[1718124166161,0.009416,66603.0,66602.0,0.65814084]
[1718124166847,0.009416,66603.0,66602.0,0.63814084]
[1718124167067,0.009416,66603.0,66602.0,0.65814084]
[1718124167524,0.009416,66603.0,66602.0,0.63814084]
[1718124168216,0.009416,66603.0,66602.0,0.49382091]
[1718124168430,0.240816,66603.0,66602.0,0.49382091]
[1718124169535,0.009416,66603.0,66602.0,0.65814084]
[1718124170004,0.06358864,66606.0,66605.0,0.170138]
[1718124170230,0.06358864,66606.0,66605.0,0.250138]
[1718124170435,0.06358864,66606.0,66605.0,0.25377708]
[1718124170655,0.06358864,66606.0,66605.0,0.49377708]
[1718124171081,0.21998864,66606.0,66605.0,0.49377708]
[1718124173102,0.21998864,66606.0,66605.0,0.25377708]
[1718124177238,0.1564,66606.0,66605.0,0.25377708]
[1718124177469,0.21998864,66606.0,66605.0,0.25377708]
[1718124179020,0.1564,66606.0,66605.0,0.25377708]
[1718124179249,0.21998864,66606.0,66605.0,0.25377708]
[1718124180360,0.21998864,66606.0,66605.0,0.49377708]
[1718124180567,0.21998864,66606.0,66605.0,0.51377708]
[1718124181033,0.21998864,66606.0,66605.0,0.49377708]
[1718124181263,0.06358864,66606.0,66605.0,0.51377708]
[1718124181499,0.06358864,66608.0,66607.0,0.150134]
[1718124181943,0.06358864,66608.0,66607.0,0.15372977]
[1718124182792,0.10727184,66608.0,66607.0,0.15372977]
[1718124183205,0.34617184,66608.0,66607.0,0.15372977]
[1718124185708,0.30248864,66608.0,66607.0,0.15372977]
[1718124185919,0.34617184,66608.0,66607.0,0.25069571]
[1718124186347,0.34617184,66608.0,66607.0,0.10056171]
[1718124186561,0.34617184,66608.0,66607.0,0.31497359]
[1718124186779,0.34617184,66608.0,66607.0,0.00359577]
[1718124187214,0.0436832,66603.0,66602.0,0.01828985]
[1718124187428,0.1187832,66603.0,66602.0,0.01828985]
[1718124187637,0.1187832,66603.0,66602.0,0.31499583]
[1718124187844,0.1187832,66603.0,66602.0,0.51248912]
[1718124188573,0.0751,66603.0,66602.0,0.51248912]
[1718124188796,0.0751,66603.0,66602.0,0.51234671]
[1718124189434,0.06358864,66606.0,66602.0,0.51234671]
[1718124189637,0.06358864,66606.0,66603.0,0.41140015]
[1718124190006,0.06358864,66606.0,66604.0,0.31500065]
[1718124190221,0.10727184,66606.0,66605.0,0.41140015]
[1718124190443,0.10727184,66606.0,66605.0,0.50882643]
[1718124190656,0.10727184,66606.0,66605.0,0.51242631]
[1718124190928,0.06358864,66606.0,66605.0,0.51242631]
[1718124191511,0.06358864,66606.0,66605.0,0.66256431]
[1718124191961,0.2292,66607.0,66606.0,0.150136]
[1718124191962,0.29278864,66607.0,66606.0,0.150136]
[1718124192133,0.29278864,66607.0,66606.0,0.55896243]
[1718124192405,0.29278864,66607.0,66606.0,0.56256206]
[1718124192609,0.14208864,66607.0,66606.0,0.56256206]
[1718124193293,0.06358864,66607.0,66606.0,0.56256206]
[1718124193881,0.06358864,66607.0,66606.0,0.65242606]
[1718124194325,0.06358864,66607.0,66606.0,0.80256206]
[1718124194863,0.11668784,66609.0,66607.0,0.150132]
[1718124195080,0.06358864,66608.0,66607.0,0.150132]
[1718124195279,0.06358864,66608.0,66605.0,0.2787]
[1718124195280,0.06358864,66606.0,66605.0,0.2987]
[1718124195478,0.009416,66609.0,66608.0,0.150132]
[1718124195712,0.07300464,66609.0,66608.0,0.48680087]
[1718124195942,0.07300464,66609.0,66608.0,0.79817472]
[1718124196099,0.07300464,66609.0,66608.0,0.81817472]
[1718124196335,0.07300464,66609.0,66608.0,0.79817472]
[1718124197435,0.07300464,66609.0,66608.0,0.70150585]
[1718124197641,0.07300464,66609.0,66608.0,0.79718987]
[1718124198055,0.07300464,66609.0,66608.0,0.81718987]
[1718124199174,0.07300464,66609.0,66608.0,0.79718987]
[1718124199385,0.07300464,66609.0,66608.0,0.81718987]
[1718124199820,0.009416,66609.0,66608.0,1.0615098]
[1718124200027,0.009416,66609.0,66608.0,1.31454839]
[1718124200380,0.009416,66609.0,66608.0,1.33673984]
[1718124201439,0.009416,66609.0,66608.0,1.24382625]
[1718124201644,0.009416,66609.0,66608.0,1.1772357]
[1718124202222,0.009416,66609.0,66608.0,1.25006295]
[1718124202473,0.009416,66609.0,66608.0,1.24381317]
[1718124202615,0.009416,66609.0,66608.0,1.31662025]
[1718124203046,0.009416,66609.0,66608.0,1.22093623]
[1718124203213,0.009416,66609.0,66608.0,1.33969686]
[1718124203461,0.009416,66609.0,66608.0,1.23181476]
[1718124203641,0.009416,66609.0,66608.0,1.25083299]
[1718124203930,0.009416,66615.0,66614.0,0.170118]
[1718124204119,0.009416,66615.0,66614.0,0.72581178]
[1718124204336,0.009416,66615.0,66614.0,0.82251987]
[1718124204547,0.009416,66615.0,66614.0,1.13716898]